Cogmind - Beta 13 @@@ ROGUE MODE // 2024.04.20 @ 16:54:53 Player: RKyeun Result: Self-destructed Performance ------------- Evolutions (1) 500 Regions Visited (3) 600 Robots Destroyed (9) 45 Value Destroyed (151) 151 Prototype IDs (0) 0 Alien Tech Used (0) 0 Bonus (0) 0 TOTAL SCORE: 1296 Bonus ------- None Cogmind --------- Core Integrity 368/400 Matter 197/300 Energy 125/125 System Corruption 1% Temperature Cool (0) Movement Flying (197) Ox2 Location -9/Storage Parts ------- > --- POWER (1) -------- Light Ion Engine > --- PROPULSION (2) --- Flight Unit Flight Unit > --- UTILITY (4) ------ Targeting Computer Drone Bay (0/2) Drone Bay (0/2) Drone Bay (0/2) > --- WEAPON (2) ------- (None) > --- INVENTORY (5) ---- Light Ion Engine Flight Unit Flight Unit Drone Bay (1/2) Drone Bay (0/2) Peak State ------------ > --- POWER ------------ Light Ion Engine > --- PROPULSION ------- Flight Unit Flight Unit > --- UTILITY ---------- Targeting Computer Drone Bay Drone Bay Drone Bay > --- WEAPON ----------- (None) > --- INVENTORY -------- Light Ion Engine Flight Unit Flight Unit Drone Bay Drone Bay [Rating: 20] Favorites ----------- Power Ion Engine Engine Ion Engine Propulsion Wheel Treads Light Treads Wheel Wheel Flight Unit Flight Unit Utility Targeting Computer Device Tractor Beam Storage Small Storage Unit Processor Targeting Computer Weapon Light Assault Rifle Energy Gun Medium Laser Ballistic Gun Light Assault Rifle Build | -11 -10 -9 -9 ------- Run | Yrd Mat Mat Sto Slots Evolved 2 | . . 2 . Power . | . . . . Propulsion . | . . . . Utility 2 | . . 2 . Weapon . | . . . . Parts Attached 25 | 6 8 6 5 Power 2 | 1 . 1 . Engine 2 | 1 . 1 . Core . | . . . . Reactor . | . . . . Propulsion 6 | 2 2 2 . Treads 2 | 1 1 . . Leg . | . . . . Wheel 2 | 1 1 . . Hover . | . . . . Flight 2 | . . 2 . Utility 9 | 1 2 1 5 Device 7 | . 1 1 5 Storage 1 | 1 . . . Processor 1 | . 1 . . Hackware . | . . . . Protection . | . . . . Artifact . | . . . . Weapon 8 | 2 4 2 . Energy Gun 5 | 2 3 . . Energy Cannon . | . . . . Ballistic Gun 3 | . 1 2 . Ballistic Cannon . | . . . . Launcher . | . . . . Special Weapon . | . . . . Impact Weapon . | . . . . Slashing Weapon . | . . . . Piercing Weapon . | . . . . Special Melee Weapon . | . . . . Unidentified Prototypes . | . . . . Parts Lost 1 | . 1 . . Power . | . . . . Propulsion . | . . . . Utility . | . . . . Weapon 1 | . 1 . . Highest Loss Streak 1 | . 1 . . To Critical Strikes . | . . . . Average Slot Usage (%) 92 | . 96 84 82 Engine 12 | . 14 11 11 Treads 7 | . 11 . . Wheel 13 | . 16 12 . Flight 4 | . . 9 22 Device 8 | . 1 18 27 Storage 7 | . 12 . . Processor 12 | . 13 11 11 Energy Gun 15 | . 22 3 . Ballistic Gun 7 | . 2 18 11 Naked Turns . | . . . . Heaviest Build 21 | 14 14 9 21 Greatest Support 20 | 10 20 20 8 Greatest Overweight (x) 2 | 1 1 . 2 Average Overweight (x) . | . . . . Largest Inventory Capacity 8 | 8 8 5 5 Average Capacity 6 | 7 7 5 5 Most Carried 8 | 6 8 5 5 Average Carried 4 | 2 5 3 4 Final Capacity 8 | 8 5 5 5 Final Carried 5 | 4 3 5 5 Class Distribution -------------------- 79% | Mutant 20% | Scavenger-Mutant Dominant Class ---------------- Mutant | -10/Materials Mutant | -9/Materials Scavenger-Mutant | -9/Storage Resources | -11 -10 -9 -9 ----------- Run | Yrd Mat Mat Sto Matter Collected 358 | 196 99 50 13 Remotely 50 | . . 50 . Salvage Created 200 | . 150 50 . Parts 19 | . 11 8 . Haulers Intercepted . | . . . . Recyclers Shooed . | . . . . Parts Field Recycled . | . . . . Retrieved Matter . | . . . . Parts Self-Destructed . | . . . . Prevented . | . . . . Kills | -11 -10 -9 -9 ------- Run | Yrd Mat Mat Sto Combat Hostiles Destroyed 9 | . 5 4 . Guns 8 | . 4 4 . Classes Destroyed 2 | . 2 . . Swarmer 7 | . 3 4 . Grunt 2 | . 2 . . Best Kill Streak 4 | . 3 4 . Combat Bots Only 4 | . 3 4 . Max Kills in Single Turn 1 | . 1 1 . Gunslinging . | . . . . Exploded . | . . . . Melee . | . . . . Uniques/NPCs Destroyed . | . . . . Combat | -11 -10 -9 -9 -------- Run | Yrd Mat Mat Sto Hostile Shots Fired 62 | . 37 10 15 Missed 18 | . 9 2 7 Damage Taken 462 | . 284 61 117 Core 93 | . 61 . 32 Absorbed by Shields . | . . . . Core Remaining (%) 87 | 100 75 . . Volleys Fired 25 | . 17 8 . Largest 2 | . 2 2 . Hottest 90 | . 90 60 . Shots Fired 46 | . 30 16 . Gun 46 | . 30 16 . Cannon . | . . . . Launcher . | . . . . Special . | . . . . Kinetic 16 | . 3 13 . Thermal 23 | . 20 3 . Explosive . | . . . . Electromagnetic 7 | . 7 . . Robot Hit Streak 7 | . 7 5 . Robot Miss Streak 5 | . 5 2 . Penetration Max . | . . . . Secondary Targets 1 | . 1 . . Max Gunslinging Chain 1 | . 1 . . Shots Hit Robots 24 | . 17 7 . Core Hits 13 | . 8 5 . Critical Kills . | . . . . Critical Parts Destroyed . | . . . . Critical Strikes 1 | . 1 . . Burn 1 | . 1 . . Melee Attacks . | . . . . Impact . | . . . . Slashing . | . . . . Piercing . | . . . . Sneak Attacks . | . . . . Combat Hostiles . | . . . . Follow-up Attacks . | . . . . Damage Inflicted 259 | . 197 62 . Guns 259 | . 197 62 . Cannons . | . . . . Explosions . | . . . . Melee . | . . . . Ramming . | . . . . Kinetic 72 | . 20 52 . Thermal 120 | . 110 10 . Explosive . | . . . . Electromagnetic 67 | . 67 . . Impact . | . . . . Slashing . | . . . . Piercing . | . . . . Highest Corruption 1 | . . . 1 Average Corruption 1 | . . . 1 Corruption Purged . | . . . . Corruption Blocked . | . . . . Overload Shots . | . . . . Overflow Damage . | . . . . Projectiles . | . . . . Explosions . | . . . . Melee . | . . . . Knockbacks . | . . . . Impact . | . . . . Kinetic . | . . . . Secondary . | . . . . Self-Inflicted Damage . | . . . . Shots . | . . . . Rammed . | . . . . Targets Rammed . | . . . . Kicked . | . . . . Crushed . | . . . . Highest Temperature 135 | . 135 . . Average Temperature 56 | . 56 . . Received Heat Transfer 144 | . 96 . 48 Siege Activations . | . . . . Robots Corrupted . | . . . . Combat Hostiles . | . . . . Parts Fried . | . . . . Impact Corruptions . | . . . . Robots Melted 1 | . 1 . . Combat Hostiles 1 | . 1 . . Parts Melted 1 | . 1 . . Heat Transferred 420 | . 395 25 . Parts Sabotaged . | . . . . Parts Stolen . | . . . . Parts Stripped . | . . . . Power Chain Reactions . | . . . . Alert | -11 -10 -9 -9 ------- Run | Yrd Mat Mat Sto Peak Influence 189 | . 189 169 70 Initial 79 | . . 79 70 Average 81 | . 83 131 54 Maximum Alert Level . | . . . . Low Security (%) 100 | 100 100 100 100 Level 1 . | . . . . Level 2 . | . . . . Level 3 . | . . . . Level 4 . | . . . . Level 5 . | . . . . High Security . | . . . . Max Security . | . . . . Squads Dispatched 1 | . . . 1 Investigation 1 | . . . 1 Extermination . | . . . . Reinforcement . | . . . . Assault . | . . . . Garrison . | . . . . Intercept . | . . . . Searches Triggered . | . . . . Construction Impeded . | . . . . Haulers Reinforced . | . . . . Active Scanning Responses . | . . . . Cargo Convoy Interrupts . | . . . . Stealth | -11 -10 -9 -9 --------- Run | Yrd Mat Mat Sto Distress Signals 1 | . . 1 . Communications Jammed . | . . . . Distress Signals . | . . . . Times Spotted 21 | . 11 5 5 Peak Tracking Total 5 | . 5 4 3 Tactical Retreats 2 | . 2 . . Traps | -11 -10 -9 -9 ------- Run | Yrd Mat Mat Sto Traps Triggered 2 | . 1 . 1 Indirectly . | . . . . Trap Hack Attempts . | . . . . Triggered . | . . . . Disarmed . | . . . . Reprogrammed . | . . . . Reused . | . . . . Traps Extracted . | . . . . Installed . | . . . . Triggered . | . . . . Machines | -11 -10 -9 -9 ---------- Run | Yrd Mat Mat Sto Machines Disabled . | . . . . Max in Single Turn . | . . . . Machines Repaired . | . . . . Machines Dismantled . | . . . . Machines Sabotaged . | . . . . Overloaded Fab Kills . | . . . . Hacking | -11 -10 -9 -9 --------- Run | Yrd Mat Mat Sto Machines Accessed 6 | . 3 1 2 Terminals 4 | . 2 . 2 Fabricators . | . . . . Repair Stations . | . . . . Recycling Units 1 | . 1 . . Scanalyzers 1 | . . 1 . Garrison Access . | . . . . Total Hacks 15 | . 6 6 3 Successful 8 | . 2 5 1 Failed 7 | . 4 1 2 Catastrophic . | . . . . Database Lockouts . | . . . . Manual 3 | . 2 . 1 Terminals 7 | . 4 . 3 Fabricators . | . . . . Repair Stations . | . . . . Recycling Units 2 | . 2 . . Scanalyzers 6 | . . 6 . Garrison Access . | . . . . Terminal Hacks 2 | . 1 . 1 Open Door 1 | . . . 1 Branch Access Points 1 | . 1 . . Fabricator Hacks . | . . . . Repair Station Hacks . | . . . . Recycling Unit Hacks . | . . . . Scanalyzer 5 | . . 5 . Insert Component 2 | . . 2 . Analyze 3 | . . 3 . Garrison Access Hacks . | . . . . Unauthorized Hacks 1 | . 1 . . Terminals . | . . . . Fabricators . | . . . . Repair Stations . | . . . . Recycling Units 1 | . 1 . . Reject 1 | . 1 . . Scanalyzers . | . . . . Garrison Access . | . . . . Data Cores Recovered . | . . . . Used . | . . . . Hacking Detections 4 | . 3 . 1 Full Trace Events 1 | . . . 1 Feedback Events 1 | . . . 1 Corruption 1 | . . . 1 Feedback Blocked . | . . . . Robot Schematics Acquired . | . . . . Robots Built . | . . . . Authchips . | . . . . Time . | . . . . Total Robot Build Rating . | . . . . Part Schematics Acquired 2 | . . 2 . Parts Built . | . . . . Authchips . | . . . . Time . | . . . . Total Part Build Rating . | . . . . Parts Repaired . | . . . . Time . | . . . . Parts Recycled . | . . . . Recycled Matter . | . . . . Retrieved Matter . | . . . . Retrieved Components . | . . . . Parts Scanalyzed 2 | . . 2 . Part Schematics Acquired 2 | . . 2 . Parts Damaged . | . . . . Bothacking | -11 -10 -9 -9 ------------ Run | Yrd Mat Mat Sto Used RIF Installer . | . . . . Robots Hacked . | . . . . Non-combat . | . . . . Combat . | . . . . Robot Hacks Applied . | . . . . Relay Couplers Released . | . . . . Fabnet Peak Effective % . | . . . . Robots Rewired . | . . . . Allies Hacked . | . . . . Hacks Repelled . | . . . . Allies | -11 -10 -9 -9 -------- Run | Yrd Mat Mat Sto Total Allies . | . . . . Largest Group . | . . . . Highest-Rated Group . | . . . . Highest-Rated Ally . | . . . . Total Orders . | . . . . Ally Attacks . | . . . . Total Damage . | . . . . Kills . | . . . . Allies Corrupted . | . . . . Allies Melted . | . . . . Intel | -11 -10 -9 -9 ------- Run | Yrd Mat Mat Sto Robot Analysis Total . | . . . . Derelict Logs Recovered . | . . . . Drone Launches 19 | . . . 19 Drone Recoveries 10 | . . . 10 Exploration | -11 -10 -9 -9 ------------- Run | Yrd Mat Mat Sto Turns Passed 425 | 54 236 96 39 Spaces Moved 349 | 47 167 107 28 Core 17 | 17 . . . Treads 4 | . 4 . . Legs . | . . . . Wheels 231 | 30 163 38 . Hover . | . . . . Flight 97 | . . 69 28 Fastest Speed 37 | 50 80 37 37 Average Speed 76 | 79 94 52 59 Slowest Speed 197 | 100 160 80 197 Overloaded Moves . | . . . . Propulsion Burnouts . | . . . . Robots Hopped . | . . . . Cave-ins Triggered . | . . . . Exploration Rate (%) 12 | 3 28 11 9 Regions Visited 3 Branch Regions 1 Pre-discovered Areas . | . . . . Known Exits Taken . | . . . . Unknown Exits Taken 3 | 1 1 1 . Scrap Searched . | . . . . Spaces Dug . | . . . . Terrain Destroyed . | . . . . Melee . | . . . . Projectile . | . . . . AOE . | . . . . Terrain Rammed . | . . . . Walls Destroyed . | . . . . Machines Disabled . | . . . . Actions | -11 -10 -9 -9 --------- Run | Yrd Mat Mat Sto Total 465 | 62 218 135 50 Wait 25 | 1 14 . 10 Move 346 | 46 166 106 28 Hop . | . . . . Pick Up 25 | 9 7 7 2 Fast Attach 5 | 1 . 1 3 Attach 11 | 5 5 1 . Detach 1 | . . 1 . Swap 9 | . 3 4 2 Drop 18 | . 6 7 5 Fire 25 | . 17 8 . Melee . | . . . . Ram . | . . . . Kick . | . . . . Crush . | . . . . Escape Stasis . | . . . . Rewire . | . . . . Trap . | . . . . Miscellaneous . | . . . . Route ------- -11/Scrapyard -10/Materials (discovered 2 exits: *Mat / Min) -9/Materials -9/Storage History --------- Turn | Location | Event 36 | -11/Scrapyard | Discovered new exit (range 15) 55 | -11/Scrapyard | Entered Materials 136 | -10/Materials | Identified exit to Mines 267 | -10/Materials | Discovered new exit (range 10) 291 | -10/Materials | Entered another Materials area 291 | -9/Materials | Evolved 2 slots: Utility x2 312 | -9/Materials | Build established: Mutant 386 | -9/Materials | Discovered new exit (range 5) 387 | -9/Materials | Entered Storage 426 | -9/Storage | Self-destructed Last Messages --------------- Drone released from Drone Bay. Dropped Sml. Laser. Drone released from Drone Bay. Drone destroyed. Acquired Drone Bay. Drone retrieved by Drone Bay. Drone destroyed. Drone retrieved by Drone Bay. Acquired Drone Bay. Drone released from Drone Bay. Drone retrieved by Drone Bay. Drone released from Drone Bay. Drone retrieved by Drone Bay. Drone released from Drone Bay. Drone retrieved by Drone Bay. R-06 Scavenger collects Lgt. Assault Rifle. Drone released from Drone Bay. [Achievement: Release The Drones!] Drone destroyed. Acquired 13 matter. Map ----- +----------------------------------------------------+ | | | | | | | | | | | | | | | | | | | | | | | | | ?????????????????????####???????????????????? | | ??????????????########T"#???????????????????? | | ??????????????# ## "#######?????????????? | | ??????????????# #?????????????? | | ??????????????# #?????????????? | | ??????????????# #?????????????? | | ??????????????# ###########?????????????? | | ??????????????## ##???????????????????????? | | ???????????????# #????????????????????????? | | ???????????????# #????????????????????????? | | ???????????????# ########?????????????????? | | ???????????????# # #gg! #?????????????????? | | ???????????????# u%/nrng[ #?????????????????? | | ???????????????# #n#n!!@#?????????????????? | | ???????????????# #T######?????????????????? | | ???????????????# ###??????????????????????? | | ???????????????# #????????????????????????? | | ??????????????? ????????????????????????? | | ?????????????? ????????????????????????? | | ????????????? ????????????????????????? | | ???????????? """ ????????????????????????? | | ??????????? G" ????????????????????????? | | ?????????? """ #????????????????????????? | | ?????????# ?????????????????????????? | | ?????????# ??? ?????????????????????????? | | ?????????# ??? ?????????????????????????? | | ?????????# ????? ?????????????????????????? | | ???????????????? ?????????????????????????? | | ???????????????? ?????????????????????????? | | ???????????????? ?????????????????????????? | | ????????????????????????????????????????????? | | ????????????????????????????????????????????? | | ????????????????????????????????????????????? | | ????????????????????????????????????????????? | | ????????????????????????????????????????????? | | ????????????????????????????????????????????? | | ????????????????????????????????????????????? | | ????????????????????????????????????????????? | +----------------------------------------------------+ Best States ------------- Heat Dissipation 38 Energy Generation 10 Energy Capacity 250 Matter Stores 300 Matter Capacity 300 Sight Range 16 Terrain Scan Density 10 Evasion (%) 62 Targeting Accuracy 5 Recoil Reduction 1 Item Schematics ----------------- Lgt. Ion Engine | -9/Materials | Scanalyzed Flight Unit | -9/Materials | Scanalyzed Robot Schematics ------------------ None Fabricated ------------ Nothing Alien Tech Used ----------------- None Achievements -------------- Release The Drones! Challenges ------------ None Game ------ Seed HybridSpectralLattice Manual? 0 Play Time 00:16:58 Cumulative 7.3 hours Start 2024.04.20 @ 16:36:14 End 2024.04.20 @ 16:54:53 Sessions 1 Manual Loads 0 Difficulty Rogue Special Mode None Game No. 11 Rogue 11 Adventurer 0 Explorer 0 Win Type - Total 0 Types 0/0/0/0/0/0/0/0/0 Lore% 2 Gallery% 13 Achievement% 11 Wizard Run 0 Options --------- Layout 1 ASCII 0 Keyboard 0 Movement Mouse Keybinds 0 Fullscreen 1 Font 24/Smallcaps Map View 50x35 Zoom Use 0% Tactical HUD 0 Map Filters NONE Filters NONE Steam 0 RUN: 135d188e-d4a9-42b0-9889-084b9bc2cd02